[Event "Niedersachsen-ch A 2024"]
[Site "Verden Aller"]
[Date "2024.01.07"]
[Round "7.5"]
[White "Ahlbrecht, Malte"]
[Black "Jacobi, Felix-Hagen"]
[Result "1-0"]
[ECO "A44"]
[WhiteElo "1727"]
[BlackElo "2056"]
[Annotator "RC"]
[PlyCount "173"]
[EventDate "2024.01.01"]
[EventType "swiss"]
[EventCountry "GER"]
[SourceTitle "playchess.com"]
[Source "ChessBase"]
[SourceQuality "1"]
[TimeControl "40/5400+30:1800+30"]

1. d4 {[%emt 0:08:06]} c5 {[%emt 0:00:42]} 2. d5 {[%emt 1:23:24]} e5 {[%emt 0:01:10]} 3. e4 {[%emt 0:00:00]} d6 {[%emt 0:02:06]} 4. Bb5+ {[%emt 0:00:00]} Bd7 {[%emt 0:00:40]} 5. a4 {[%emt 0:00:00]} Na6 {[%emt 0:00:53]} 6. Nf3 {[%emt 0:00:00]} Be7 {[%emt 0:04:13]} 7. Be3 {[%emt 0:00:00]} Nc7 {[%emt 0:06:11]} 8. Bxd7+ {[%emt 0:00:00]} Qxd7 {[%emt 0:00:20]} 9. c4 {[%emt 0:00:00]} Nf6 {[%emt 0:06:21]} 10. Qd3 {[%emt 0:00:00]} Na6 {[%emt 0:05:11]} 11. Nc3 {[%emt 0:00:00]} Nb4 {[%emt 0:03:19]} 12. Qb1 {[%emt 0:00:00]} a5 {[%emt 0:06:05]} 13. Nb5 {[%emt 0:00:00]} O-O-O {[%emt 0:02:31]} 14. h3 {[%emt 0:00:00]} h6 {[%emt 0:01:28]} 15. Bd2 {[%emt 0:00:00]} b6 {[%emt 0:02:03]} 16. Bxb4 {[%emt 0:00:00]} cxb4 {[%emt 0:00:22]} 17. Qd3 {[%emt 0:00:00]} Kb7 {[%emt 0:03:07]} 18. Rc1 {[%emt 0:02:44]} Qc8 {[%emt 0:01:34]} 19. Nd2 {[%emt 0:01:05]} Nd7 {[%emt 0:00:27]} 20. Nb3 {[%emt 0:01:05]} Nc5 {[%emt 0:01:20]} 21. Nxc5+ {[%emt 0:00:20]} bxc5 {[%emt 0:03:37]} 22. Qg3 {[%emt 0:01:31]} Bg5 {[%emt 0:06:53]} 23. Rd1 {[%emt 0:00:04]} f5 {[%emt 0:02:37]} 24. h4 {[%emt 0:00:43]} f4 {[%emt 0:04:14]} 25. Qh3 {[%emt 0:01:38]} Be7 {[%emt 0:01:24]} 26. Rd3 {[%emt 0:01:34]} Rdg8 {[%emt 0:10:27]} 27. Rf3 {[%emt 0:00:51]} g5 {[%emt 0:03:10]} 28. hxg5 {[%emt 0:00:36]} Rxg5 {[%emt 0:01:15]} 29. Qxc8+ {[%emt 0:00:22]} Kxc8 {[%emt 0:00:39]} 30. Na7+ {[%emt 0:00:41]} Kd7 {[%emt 0:01:22]} 31. Kf1 {[%emt 0:00:32]} Rg6 {[%emt 0:07:30]} 32. Nc6 {[%emt 0:00:34]} Bg5 {[%emt 0:02:03]} 33. b3 {[%emt 0:00:27]} Ra8 {[%emt 0:00:13]} 34. g3 {[%emt 0:00:31]} Ke8 {[%emt 0:01:43]} 35. gxf4 {[%emt 0:00:30]} Bxf4 {[%emt 0:00:24]} 36. Rg1 {[%emt 0:00:15]} Kf7 {[%emt 0:00:56]} 37. Rxg6 {[%emt 0:00:26]} Kxg6 {[%emt 0:00:34]} 38. Ne7+ {[%emt 0:00:19]} Kg5 {[%emt 0:05:21]} 39. Nf5 {[%emt 0:00:35]} Rd8 {[%emt 0:00:07]} 40. Rh3 {[%emt 0:00:55]} Kg6 {[%emt 0:04:20]} 41. Kg2 {[%emt 0:05:31]} Rd7 {[%emt 0:02:28]} 42. Kf3 {[%emt 0:01:50]} Bg5 {[%emt 0:01:26]} 43. Kg4 {[%emt 0:01:52]} Rd8 {[%emt 0:03:39]} 44. Rh5 {[%emt 0:02:42]} Rd7 {[%emt 0:01:29]} 45. Rh3 {[%emt 0:04:11]} Rd8 {[%emt 0:00:42]} 46. Rg3 {[%emt 0:04:50]} Rd7 {[%emt 0:01:33]} 47. Kh3 {[%emt 0:02:13]} Kf6 {[%emt 0:03:04]} 48. Rf3 {[%emt 0:02:44]} Kg6 {[%emt 0:06:29]} 49. Kg3 {[%emt 0:06:06]} Rd8 {[%emt 0:02:15]} 50. Kg4 {[%emt 0:00:42]} Rd7 {[%emt 0:05:30]} 51. Ng3 {[%emt 0:00:19]} Rd8 {[%emt 0:02:26]} 52. Rf5 {[%emt 0:02:16]} Rg8 {[%emt 0:02:41]} 53. Nh5 {[%emt 0:00:43]} Be7 {[%emt 0:00:40]} 54. Kh3 {[%emt 0:00:22]} Bg5 {[%emt 0:00:42]} 55. Ng3 {[%emt 0:00:22]} Bf4 {[%emt 0:00:50]} 56. Ne2 {[%emt 0:00:35]} Bg5 {[%emt 0:00:48]} 57. Rf3 {[%emt 0:00:39]} Kg7 {[%emt 0:00:54]} 58. Ng3 {[%emt 0:00:34]} Kg6 {[%emt 0:00:45]} 59. Nf5 {[%emt 0:00:45]} Rd8 {[%emt 0:00:20]} 60. Rg3 {[%emt 0:00:23]} Kf6 {[%emt 0:01:29]} 61. Rg4 {[%emt 0:00:24]} Rd7 {[%emt 0:00:27]} 62. Kg2 {[%emt 0:00:48]} Kg6 {[%emt 0:00:44]} 63. Rg3 {[%emt 0:00:35]} Kf6 {[%emt 0:01:10]} 64. Kh3 {[%emt 0:00:26]} Rd8 {[%emt 0:00:23]} 65. Kg4 {[%emt 0:00:22]} Kg6 {[%emt 0:00:28]} 66. Rg1 {[%emt 0:00:48]} Rd7 {[%emt 0:00:41]} 67. Kh3 {[%emt 0:00:32]} Kf6 {[%emt 0:00:17]} 68. Rg2 {[%emt 0:00:35]} Rd8 {[%emt 0:00:12]} 69. Kg4 {[%emt 0:00:29]} Kg6 {[%emt 0:00:08]} 70. Rg3 {[%emt 0:00:15]} Rd7 {[%emt 0:00:12]} 71. Rf3 {[%emt 0:00:25]} Bf4 {[%emt 0:00:31]} 72. Nh4+ {[%emt 0:00:34]} Kf6 {[%emt 0:00:37]} 73. Kh5 {[%emt 0:00:36]} Rg7 {[%emt 0:00:12]} 74. Nf5 {[%emt 0:00:09]} Rd7 {[%emt 0:01:11]} 75. Rh3 {[%emt 0:00:30]} Rd8 {[%emt 0:00:38]} 76. Rh1 {[%emt 0:00:31]} Bg5 {[%emt 0:00:36]} 77. Rg1 {[%emt 0:00:32]} Rd7 {[%emt 0:00:11]} 78. Nxh6 {[%emt 0:00:54]} Bxh6 {[%emt 0:01:11]} 79. Rg6+ {[%emt 0:00:27]} Ke7 {[%emt 0:00:17]} 80. Kxh6 {[%emt 0:00:05]} Rd8 {[%emt 0:00:14]} 81. Kg7 {[%emt 0:00:37]} Ra8 {[%emt 0:00:47]} 82. Re6+ {[%emt 0:00:26]} Kd7 {[%emt 0:00:09]} 83. Rf6 {[%emt 0:00:55]} Re8 {[%emt 0:01:09]} 84. Rf7+ {[%emt 0:00:17]} Re7 {[%emt 0:00:21]} 85. Kg6 {[%emt 0:00:22]} Kd8 {[%emt 0:00:21]} 86. Rxe7 {[%emt 0:00:05]} Kxe7 {[%emt 0:00:04]} 87. Kg7 {[%emt 0:00:03]} 1-0

[Event "Niedersachsen-ch A 2024"]
[Site "Verden Aller"]
[Date "2024.01.07"]
[Round "7.6"]
[White "Martin, Dennis"]
[Black "Kieselbach, Jannik"]
[Result "0-1"]
[ECO "E15"]
[WhiteElo "1991"]
[BlackElo "1885"]
[Annotator "NA RC"]
[PlyCount "24"]
[EventDate "2024.01.01"]
[EventType "swiss"]
[EventCountry "GER"]
[SourceTitle "playchess.com"]
[Source "ChessBase"]
[SourceQuality "1"]
[TimeControl "40/5400+30:1800+30"]

1. d4 {[%emt 0:00:02]} Nf6 {[%emt 0:00:10]} 2. c4 {[%emt 0:00:02]} e6 {[%emt 0:00:12]} 3. Nf3 {[%emt 0:00:03]} b6 {[%emt 0:00:39]} 4. g3 {[%emt 0:00:02]} Ba6 {[%emt 0:00:24]} 5. Qc2 {[%emt 0:00:49]} c5 {[%emt 0:00:15]} 6. Bg2 {[%emt 0:00:14]} Nc6 {[%emt 0:00:25]} 7. e3 {[%emt 0:01:00]} cxd4 {[%emt 0:00:09]} 8. exd4 {[%emt 0:00:40]} Nb4 {[%emt 0:00:06]} 9. Qb3 {[%emt 0:00:22]} Bxc4 {[%emt 0:00:06]} 10. Qxc4 {[%emt 0:02:59]} Rc8 {[%emt 0:00:08]} 11. Qe2 {[%emt 0:00:06]} Rxc1+ {[%emt 0:00:29]} 12. Kd2 {[%emt 0:00:04]} Rc2+ {[%emt 0:00:06]} 0-1

[Event "Niedersachsen-ch A 2024"]
[Site "Verden Aller"]
[Date "2024.01.07"]
[Round "7.7"]
[White "Kiesel, Lucas"]
[Black "Sickmann, Lisa"]
[Result "1-0"]
[ECO "D37"]
[WhiteElo "1987"]
[BlackElo "1961"]
[Annotator "RC"]
[PlyCount "119"]
[EventDate "2024.01.01"]
[EventType "swiss"]
[EventCountry "GER"]
[SourceTitle "playchess.com"]
[Source "ChessBase"]
[SourceQuality "1"]
[TimeControl "40/5400+30:1800+30"]

1. d4 {[%emt 0:00:06]} d5 {[%emt 0:00:32]} 2. c4 {[%emt 0:00:04]} e6 {[%emt 0:00:04]} 3. Nf3 {[%emt 0:00:08]} Nf6 {[%emt 0:00:14]} 4. Nc3 {[%emt 0:00:07]} Be7 {[%emt 0:00:03]} 5. Bf4 {[%emt 0:00:05]} O-O {[%emt 0:00:26]} 6. e3 {[%emt 0:00:39]} b6 {[%emt 0:00:03]} 7. Qc2 {[%emt 0:01:19]} c5 {[%emt 0:00:13]} 8. dxc5 {[%emt 0:08:59]} bxc5 {[%emt 0:00:11]} 9. Rd1 {[%emt 0:00:58]} Bb7 {[%emt 0:00:50]} 10. Bd3 {[%emt 0:06:20]} Nbd7 {[%emt 0:02:37]} 11. O-O {[%emt 0:02:33]} Rc8 {[%emt 0:01:44]} 12. h3 {[%emt 0:07:17]} h6 {[%emt 0:01:28]} 13. Be2 {[%emt 0:00:43]} Qb6 {[%emt 0:02:07]} 14. Ne5 {[%emt 0:05:11]} Rfd8 {[%emt 0:03:46]} 15. Rd2 {[%emt 0:06:17]} Nxe5 {[%emt 0:08:21]} 16. Bxe5 {[%emt 0:00:04]} Bc6 {[%emt 0:05:07]} 17. Rfd1 {[%emt 0:06:32]} Qb7 {[%emt 0:04:25]} 18. cxd5 {[%emt 0:09:47]} exd5 {[%emt 0:00:59]} 19. Bf3 {[%emt 0:02:46]} Nd7 {[%emt 0:04:53]} 20. Bg3 {[%emt 0:05:52]} Nb6 {[%emt 0:00:32]} 21. b3 {[%emt 0:01:26]} d4 {[%emt 0:05:29]} 22. Bxc6 {[%emt 0:08:15]} Qxc6 {[%emt 0:00:21]} 23. Ne2 {[%emt 0:07:16]} dxe3 {[%emt 0:03:41]} 24. Rxd8+ {[%emt 0:01:52]} Rxd8 {[%emt 0:00:18]} 25. Rxd8+ {[%emt 0:00:02]} Bxd8 {[%emt 0:00:07]} 26. fxe3 {[%emt 0:00:13]} Bf6 {[%emt 0:04:03]} 27. Bf2 {[%emt 0:02:07]} c4 {[%emt 0:04:59]} 28. bxc4 {[%emt 0:00:16]} Qxc4 {[%emt 0:03:45]} 29. Qxc4 {[%emt 0:03:11]} Nxc4 {[%emt 0:00:25]} 30. Nd4 {[%emt 0:02:37]} Kf8 {[%emt 0:01:37]} 31. Kf1 {[%emt 0:00:41]} a6 {[%emt 0:02:06]} 32. Ke2 {[%emt 0:00:43]} Ke7 {[%emt 0:01:24]} 33. Kd3 {[%emt 0:01:30]} Nd6 {[%emt 0:03:39]} 34. Bg3 {[%emt 0:02:23]} Kd7 {[%emt 0:02:11]} 35. e4 {[%emt 0:02:56]} Nb5 {[%emt 0:02:26]} 36. e5 {[%emt 0:01:56]} Nxd4 {[%emt 0:04:59]} 37. exf6 {[%emt 0:01:04]} Nf5 {[%emt 0:00:11]} 38. fxg7 {[%emt 0:00:04]} Nxg7 {[%emt 0:00:06]} 39. Bf4 {[%emt 0:02:12]} h5 {[%emt 0:00:30]} 40. Kd4 {[%emt 0:01:47]} f6 {[%emt 0:15:17]} 41. Kd5 {[%emt 0:05:34]} Nf5 {[%emt 0:01:52]} 42. Kc5 {[%emt 0:01:37]} Nh4 {[%emt 0:01:31]} 43. g3 {[%emt 0:01:08]} Nf3 {[%emt 0:00:14]} 44. Kb6 {[%emt 0:01:05]} h4 {[%emt 0:00:48]} 45. Kxa6 {[%emt 0:01:45]} Kc6 {[%emt 0:00:45]} 46. a4 {[%emt 0:01:32]} hxg3 {[%emt 0:00:46]} 47. Bxg3 {[%emt 0:00:06]} f5 {[%emt 0:00:05]} 48. h4 {[%emt 0:00:51]} f4 {[%emt 0:00:09]} 49. Bf2 {[%emt 0:00:31]} Nh2 {[%emt 0:00:40]} 50. h5 {[%emt 0:01:18]} Ng4 {[%emt 0:00:09]} 51. Bg1 {[%emt 0:00:39]} Kc7 {[%emt 0:00:50]} 52. Kb5 {[%emt 0:01:42]} f3 {[%emt 0:00:28]} 53. a5 {[%emt 0:01:29]} f2 {[%emt 0:00:48]} 54. Bxf2 {[%emt 0:00:03]} Nxf2 {[%emt 0:00:05]} 55. h6 {[%emt 0:00:42]} Ne4 {[%emt 0:00:05]} 56. h7 {[%emt 0:00:27]} Nd6+ {[%emt 0:00:06]} 57. Kc5 {[%emt 0:00:33]} Nf7 {[%emt 0:00:07]} 58. Kd4 {[%emt 0:01:47]} Kb7 {[%emt 0:01:37]} 59. Ke3 {[%emt 0:00:06]} Ka6 {[%emt 0:00:58]} 60. Kf4 {[%emt 0:00:05]} 1-0

[Event "Niedersachsen-ch A 2024"]
[Site "Verden Aller"]
[Date "2024.01.07"]
[Round "7.8"]
[White "Drygala, Lars"]
[Black "Koch, Yannick"]
[Result "0-1"]
[ECO "D02"]
[WhiteElo "1869"]
[BlackElo "1981"]
[Annotator "RC"]
[PlyCount "90"]
[EventDate "2024.01.01"]
[EventType "swiss"]
[EventCountry "GER"]
[SourceTitle "playchess.com"]
[Source "ChessBase"]
[SourceQuality "1"]
[TimeControl "40/5400+30:1800+30"]

1. d4 {[%emt 0:00:04]} Nf6 {[%emt 0:00:18]} 2. Bf4 {[%emt 0:00:16]} d5 {[%emt 0:00:29]} 3. e3 {[%emt 0:00:11]} e6 {[%emt 0:00:19]} 4. Nf3 {[%emt 0:00:14]} Bd6 {[%emt 0:00:17]} 5. Bg3 {[%emt 0:00:18]} O-O {[%emt 0:00:34]} 6. Bd3 {[%emt 0:00:16]} c5 {[%emt 0:00:47]} 7. c3 {[%emt 0:00:15]} Qc7 {[%emt 0:00:35]} 8. Ne5 {[%emt 0:03:23]} Nc6 {[%emt 0:02:21]} 9. f4 {[%emt 0:01:27]} Ne7 {[%emt 0:00:58]} 10. O-O {[%emt 0:01:02]} Nf5 {[%emt 0:00:47]} 11. Bf2 {[%emt 0:00:12]} Be7 {[%emt 0:00:43]} 12. Nd2 {[%emt 0:01:02]} b6 {[%emt 0:01:02]} 13. Qf3 {[%emt 0:06:35]} Bb7 {[%emt 0:03:16]} 14. Qh3 {[%emt 0:03:14]} Ne4 {[%emt 0:06:09]} 15. g4 {[%emt 0:03:04]} Nfd6 {[%emt 0:10:53]} 16. Bh4 {[%emt 0:02:44]} f6 {[%emt 0:05:47]} 17. Nef3 {[%emt 0:00:11]} Rae8 {[%emt 0:06:51]} 18. g5 {[%emt 0:08:51]} Bc8 {[%emt 0:05:19]} 19. Qg2 {[%emt 0:04:10]} Nf5 {[%emt 0:15:20]} 20. gxf6 {[%emt 0:06:36]} Nxf6 {[%emt 0:03:39]} 21. Bxf5 {[%emt 0:02:23]} exf5 {[%emt 0:00:21]} 22. Ne5 {[%emt 0:00:14]} Be6 {[%emt 0:05:00]} 23. Kh1 {[%emt 0:05:32]} Ne4 {[%emt 0:08:26]} 24. Bxe7 {[%emt 0:00:37]} Qxe7 {[%emt 0:00:24]} 25. Nxe4 {[%emt 0:01:16]} fxe4 {[%emt 0:04:10]} 26. Rf2 {[%emt 0:01:12]} cxd4 {[%emt 0:02:05]} 27. cxd4 {[%emt 0:03:05]} Rc8 {[%emt 0:00:25]} 28. Raf1 {[%emt 0:01:11]} Bf5 {[%emt 0:01:05]} 29. Rc2 {[%emt 0:03:57]} Bh3 {[%emt 0:04:21]} 30. Qxh3 {[%emt 0:05:07]} Rxc2 {[%emt 0:00:17]} 31. Rg1 {[%emt 0:01:16]} Rfc8 {[%emt 0:03:10]} 32. Qh5 {[%emt 0:07:37]} Rc1 {[%emt 0:01:50]} 33. Ng4 {[%emt 0:00:24]} Rxg1+ {[%emt 0:00:33]} 34. Kxg1 {[%emt 0:00:05]} Qf7 {[%emt 0:03:57]} 35. Qg5 {[%emt 0:02:36]} Kh8 {[%emt 0:01:14]} 36. Ne5 {[%emt 0:01:01]} Qc7 {[%emt 0:00:52]} 37. Kg2 {[%emt 0:00:55]} Rf8 {[%emt 0:01:50]} 38. Qh5 {[%emt 0:01:46]} Kg8 {[%emt 0:00:43]} 39. Ng4 {[%emt 0:01:02]} Qd6 {[%emt 0:01:59]} 40. f5 {[%emt 0:01:07]} a6 {[%emt 0:00:45]} 41. f6 {[%emt 0:30:30]} Kh8 {[%emt 0:22:04]} 42. f7 {[%emt 0:00:00]} g6 {[%emt 0:00:59]} 43. Qg5 {[%emt 0:00:00]} Rxf7 {[%emt 0:01:05]} 44. Ne5 {[%emt 0:00:00]} Rf8 {[%emt 0:00:47]} 45. Ng4 {[%emt 0:00:00]} Qe6 {[%emt 0:01:32]} 0-1

[Event "Niedersachsen-ch A 2024"]
[Site "Verden Aller"]
[Date "2024.01.07"]
[Round "7.9"]
[White "Soellig, Martin"]
[Black "Seer, Maurice"]
[Result "1-0"]
[ECO "C60"]
[WhiteElo "1892"]
[BlackElo "1912"]
[Annotator "NA RC"]
[PlyCount "75"]
[EventDate "2024.01.01"]
[EventType "swiss"]
[EventCountry "GER"]
[SourceTitle "playchess.com"]
[Source "ChessBase"]
[SourceQuality "1"]
[TimeControl "40/5400+30:1800+30"]

1. e4 {[%emt 0:00:04]} e5 {[%emt 0:00:08]} 2. Nf3 {[%emt 0:00:05]} Nc6 {[%emt 0:00:09]} 3. Bb5 {[%emt 0:00:08]} Nge7 {[%emt 1:31:43]} 4. c3 {[%emt 0:01:02]} g6 {[%emt 0:00:30]} 5. d3 {[%emt 0:01:26]} Bg7 {[%emt 0:00:00]} 6. Bg5 {[%emt 1:30:45]} h6 {[%emt 0:00:00]} 7. Be3 {[%emt 0:00:30]} a6 {[%emt 0:00:00]} 8. Ba4 {[%emt 0:00:30]} O-O {[%emt 0:02:00]} 9. O-O {[%emt 0:00:00]} b5 {[%emt 0:00:30]} 10. Bb3 {[%emt 0:01:00]} d6 {[%emt 0:00:30]} 11. Nbd2 {[%emt 0:00:00]} Na5 {[%emt 0:00:00]} 12. Bc2 {[%emt 0:00:00]} c5 {[%emt 0:01:00]} 13. h3 {[%emt 0:01:30]} Nac6 {[%emt 0:00:30]} 14. Nh2 {[%emt 0:00:30]} f5 {[%emt 0:00:00]} 15. f4 {[%emt 0:00:00]} exf4 {[%emt 0:00:00]} 16. Rxf4 {[%emt 0:00:00]} Be5 {[%emt 0:00:00]} 17. Rf1 {[%emt 0:00:00]} f4 {[%emt 0:00:00]} 18. Bf2 {[%emt 0:00:00]} Kh7 {[%emt 0:00:00]} 19. Ndf3 {[%emt 0:00:00]} Bg7 {[%emt 0:00:00]} 20. Qe2 {[%emt 0:00:00]} Qc7 {[%emt 0:00:00]} 21. Rad1 {[%emt 0:00:00]} Ne5 {[%emt 0:00:00]} 22. d4 {[%emt 0:00:00]} Nxf3+ {[%emt 0:00:00]} 23. Nxf3 {[%emt 0:00:00]} Be6 {[%emt 0:00:00]} 24. d5 {[%emt 0:00:00]} Bc8 {[%emt 0:00:00]} 25. e5 {[%emt 0:00:00]} Bf5 {[%emt 0:00:00]} 26. Rfe1 {[%emt 0:00:00]} Bxc2 {[%emt 0:00:00]} 27. Qxc2 {[%emt 0:00:00]} Nf5 {[%emt 0:00:00]} 28. exd6 {[%emt 0:00:00]} Nxd6 {[%emt 0:00:00]} 29. Re6 {[%emt 0:00:00]} Rf6 {[%emt 0:00:00]} 30. Nh4 {[%emt 0:00:00]} Kg8 {[%emt 0:02:09]} 31. Rxf6 {[%emt 0:00:00]} Bxf6 {[%emt 0:00:29]} 32. Qxg6+ {[%emt 0:00:00]} Qg7 {[%emt 0:00:40]} 33. Re1 {[%emt 0:00:00]} Bxh4 {[%emt 0:04:14]} 34. Qe6+ {[%emt 0:00:00]} Qf7 {[%emt 0:00:35]} 35. Bxh4 {[%emt 0:00:00]} Re8 {[%emt 0:00:28]} 36. Qxd6 {[%emt 0:00:00]} Rxe1+ {[%emt 0:00:43]} 37. Bxe1 {[%emt 0:00:00]} h5 {[%emt 0:00:56]} 38. Qe6 {[%emt 0:00:00]} 1-0

[Event "Niedersachsen-ch A 2024"]
[Site "Verden Aller"]
[Date "2024.01.07"]
[Round "7.10"]
[White "Boerma, Daniel"]
[Black "Carlstedt, Jonathan"]
[Result "0-1"]
[ECO "B76"]
[WhiteElo "1905"]
[BlackElo "2447"]
[Annotator "RC"]
[PlyCount "80"]
[EventDate "2024.01.01"]
[EventType "swiss"]
[EventCountry "GER"]
[SourceTitle "playchess.com"]
[Source "ChessBase"]
[SourceQuality "1"]
[TimeControl "40/5400+30:1800+30"]

1. e4 {[%emt 0:00:04]} c5 {[%emt 1:31:00]} 2. Nf3 {[%emt 0:00:23]} d6 {[%emt 0:00:00]} 3. d4 {[%emt 0:00:47]} cxd4 {[%emt 0:01:00]} 4. Nxd4 {[%emt 0:00:51]} Nf6 {[%emt 0:00:00]} 5. Nc3 {[%emt 0:00:18]} g6 {[%emt 0:00:00]} 6. Be3 {[%emt 0:01:48]} Bg7 {[%emt 0:00:00]} 7. f3 {[%emt 0:00:16]} Nc6 {[%emt 0:02:00]} 8. Qd2 {[%emt 0:01:16]} O-O {[%emt 0:00:00]} 9. g4 {[%emt 0:00:37]} Nxd4 {[%emt 0:00:00]} 10. Bxd4 {[%emt 0:00:07]} Be6 {[%emt 0:00:00]} 11. h4 {[%emt 1:29:33]} Qa5 {[%emt 0:00:00]} 12. h5 {[%emt 0:00:30]} Rac8 {[%emt 0:02:30]} 13. hxg6 {[%emt 0:00:00]} fxg6 {[%emt 0:00:00]} 14. Qh2 {[%emt 0:00:00]} Rf7 {[%emt 0:01:00]} 15. a3 {[%emt 0:00:00]} a6 {[%emt 0:00:00]} 16. O-O-O {[%emt 0:00:00]} b5 {[%emt 0:00:00]} 17. Nd5 {[%emt 0:00:00]} Bxd5 {[%emt 0:00:00]} 18. exd5 {[%emt 0:00:00]} b4 {[%emt 0:00:00]} 19. Qd2 {[%emt 0:03:30]} Qa4 {[%emt 0:00:00]} 20. Qd3 {[%emt 0:00:00]} Nxd5 {[%emt 0:00:00]} 21. Rh2 {[%emt 0:00:00]} bxa3 {[%emt 0:00:00]} 22. b3 {[%emt 0:00:00]} Qxd4 {[%emt 0:00:00]} 23. Qxd4 {[%emt 0:00:00]} a2 {[%emt 0:00:00]} 24. Qxg7+ {[%emt 0:00:00]} Kxg7 {[%emt 0:00:00]} 25. Kb2 {[%emt 0:00:00]} Ne3 {[%emt 0:00:00]} 26. Ra1 {[%emt 0:00:00]} Rxf3 {[%emt 0:00:00]} 27. Bxa6 {[%emt 0:00:00]} Rc5 {[%emt 0:00:00]} 28. Rxa2 {[%emt 0:00:00]} Nxg4 {[%emt 0:00:00]} 29. Rg2 {[%emt 0:00:00]} Ne3 {[%emt 0:00:00]} 30. Rh2 {[%emt 0:00:00]} Nd1+ {[%emt 0:00:00]} 31. Kc1 {[%emt 0:00:00]} Nc3 {[%emt 0:00:00]} 32. Ra1 {[%emt 0:00:00]} d5 {[%emt 0:00:00]} 33. Kb2 {[%emt 0:00:00]} d4 {[%emt 0:00:00]} 34. Bc4 {[%emt 0:00:00]} Rc7 {[%emt 0:00:00]} 35. Ra8 {[%emt 0:00:00]} h5 {[%emt 0:00:00]} 36. Rg2 {[%emt 0:00:00]} Rf6 {[%emt 0:00:00]} 37. Rd8 {[%emt 0:00:00]} Nd1+ {[%emt 0:00:00]} 38. Kc1 {[%emt 0:00:00]} Ne3 {[%emt 0:00:00]} 39. Rd2 {[%emt 0:00:00]} Rxc4 {[%emt 0:00:00]} 40. bxc4 {[%emt 0:00:00]} Rf1+ {[%emt 0:00:00]} 0-1

[Event "Niedersachsen-ch A 2024"]
[Site "Verden Aller"]
[Date "2024.01.07"]
[Round "7.11"]
[White "Kelemen, Alexander"]
[Black "Lau, Udo"]
[Result "1/2-1/2"]
[ECO "B08"]
[WhiteElo "1817"]
[BlackElo "2071"]
[Annotator "NA RC"]
[PlyCount "77"]
[EventDate "2024.01.01"]
[EventType "swiss"]
[EventCountry "GER"]
[SourceTitle "playchess.com"]
[Source "ChessBase"]
[SourceQuality "1"]
[TimeControl "40/5400+30:1800+30"]

1. e4 {[%emt 0:00:14]} c6 {[%emt 0:00:18]} 2. d4 {[%emt 0:00:08]} d6 {[%emt 0:00:13]} 3. Nc3 {[%emt 0:03:52]} Nf6 {[%emt 0:01:13]} 4. Nf3 {[%emt 0:00:57]} g6 {[%emt 0:01:47]} 5. Bg5 {[%emt 0:01:02]} Bg7 {[%emt 0:00:39]} 6. Qd2 {[%emt 0:00:15]} h6 {[%emt 0:00:11]} 7. Be3 {[%emt 0:02:57]} Na6 {[%emt 0:01:54]} 8. h3 {[%emt 0:05:53]} Be6 {[%emt 0:02:58]} 9. Bxa6 {[%emt 0:07:26]} bxa6 {[%emt 0:00:11]} 10. O-O {[%emt 0:00:08]} Qc8 {[%emt 0:01:38]} 11. Rfe1 {[%emt 0:02:57]} g5 {[%emt 0:00:52]} 12. d5 {[%emt 0:13:58]} Bd7 {[%emt 0:07:56]} 13. e5 {[%emt 0:04:24]} dxe5 {[%emt 0:01:36]} 14. Nxe5 {[%emt 0:05:07]} cxd5 {[%emt 0:01:04]} 15. Nxd5 {[%emt 0:03:01]} Nxd5 {[%emt 0:02:11]} 16. Qxd5 {[%emt 0:00:07]} Be6 {[%emt 0:00:11]} 17. Qe4 {[%emt 0:06:18]} O-O {[%emt 0:02:30]} 18. Bd4 {[%emt 0:06:45]} Re8 {[%emt 0:04:02]} 19. c3 {[%emt 0:06:32]} Rb8 {[%emt 0:04:15]} 20. b3 {[%emt 0:01:56]} Rb7 {[%emt 0:00:16]} 21. h4 {[%emt 0:08:58]} Bf5 {[%emt 0:06:39]} 22. Qe2 {[%emt 0:01:18]} gxh4 {[%emt 0:03:25]} 23. Qh5 {[%emt 0:02:59]} f6 {[%emt 0:06:02]} 24. Nc4 {[%emt 0:02:02]} Rf8 {[%emt 0:01:29]} 25. Qxh4 {[%emt 0:02:18]} Bg6 {[%emt 0:00:47]} 26. Qg3 {[%emt 0:04:33]} Qf5 {[%emt 0:04:15]} 27. Ne3 {[%emt 0:01:39]} Qg5 {[%emt 0:00:43]} 28. Qxg5 {[%emt 0:01:56]} hxg5 {[%emt 0:00:08]} 29. Nd5 {[%emt 0:00:50]} Kf7 {[%emt 0:03:02]} 30. Rad1 {[%emt 0:02:17]} Rc8 {[%emt 0:02:00]} 31. c4 {[%emt 0:00:42]} a5 {[%emt 0:01:11]} 32. Nc3 {[%emt 0:00:07]} e5 {[%emt 0:00:33]} 33. Be3 {[%emt 0:00:14]} Bf8 {[%emt 0:00:13]} 34. Nb5 {[%emt 0:01:27]} a6 {[%emt 0:02:39]} 35. Nd6+ {[%emt 0:00:07]} Bxd6 {[%emt 0:00:11]} 36. Rxd6 {[%emt 0:00:01]} a4 {[%emt 0:00:18]} 37. Rxa6 {[%emt 0:00:21]} axb3 {[%emt 0:00:18]} 38. axb3 {[%emt 0:00:03]} Rxb3 {[%emt 0:00:36]} 39. Rc1 {[%emt 0:01:05]} 1/2-1/2

[Event "Niedersachsen-ch A 2024"]
[Site "Verden Aller"]
[Date "2024.01.07"]
[Round "7.12"]
[White "Witthaus, Joerg"]
[Black "Ay, Furkan"]
[Result "1-0"]
[ECO "D93"]
[WhiteElo "2029"]
[BlackElo "1544"]
[Annotator "NA RC"]
[PlyCount "41"]
[EventDate "2024.01.01"]
[EventType "swiss"]
[EventCountry "GER"]
[SourceTitle "playchess.com"]
[Source "ChessBase"]
[SourceQuality "1"]
[TimeControl "40/5400+30:1800+30"]

1. d4 {[%emt 0:00:03]} Nf6 {[%emt 0:00:19]} 2. Nf3 {[%emt 0:00:06]} g6 {[%emt 0:00:05]} 3. c4 {[%emt 0:00:06]} Bg7 {[%emt 0:00:04]} 4. Nc3 {[%emt 0:00:04]} d5 {[%emt 0:00:05]} 5. Bf4 {[%emt 0:00:05]} O-O {[%emt 0:00:20]} 6. e3 {[%emt 0:00:06]} c5 {[%emt 0:00:06]} 7. dxc5 {[%emt 0:00:12]} Ne4 {[%emt 0:01:38]} 8. Be5 {[%emt 0:17:37]} Bxe5 {[%emt 0:14:51]} 9. Nxe5 {[%emt 0:00:26]} Qa5 {[%emt 0:01:45]} 10. Rc1 {[%emt 0:12:06]} Nxc3 {[%emt 0:07:32]} 11. Rxc3 {[%emt 0:00:14]} Na6 {[%emt 0:10:13]} 12. a3 {[%emt 0:07:14]} dxc4 {[%emt 0:10:51]} 13. Bxc4 {[%emt 0:00:41]} Qc7 {[%emt 0:01:46]} 14. Qd4 {[%emt 0:03:44]} e6 {[%emt 0:07:33]} 15. b4 {[%emt 0:08:41]} Rd8 {[%emt 0:03:27]} 16. Qf4 {[%emt 0:02:26]} b6 {[%emt 0:02:43]} 17. c6 {[%emt 0:01:46]} Nb8 {[%emt 0:04:18]} 18. Be2 {[%emt 0:02:07]} f6 {[%emt 0:09:23]} 19. Nxg6 {[%emt 0:02:10]} Qxf4 {[%emt 0:01:07]} 20. Nxf4 {[%emt 0:00:10]} Rd6 {[%emt 0:01:39]} 21. Bf3 {[%emt 0:03:51]} 1-0